fUSD/lending_fUSD_20260527
["ID","MTS","AMOUNT","RATE_DAILY","PERIOD"]
[423093518,1779839439000,-206.74242216,0.00033,120]
[423093521,1779839439000,-500.0,0.00033304,2]
[423093516,1779839439000,-2208.196,0.00032146,31]
[423093519,1779839439000,-182.59,0.00033231,120]
[423093520,1779839439000,-500.0,0.00033304,2]
[423093517,1779839439000,-475.7,0.0003221,5]
[423093523,1779839439000,-500.0,0.00033304,2]
[423093537,1779839439000,-263.68235144,0.00034009,2]
[423093526,1779839439000,-150.0,0.00033304,2]
[423093539,1779839439000,-500.0,0.00034009,7]
[423093545,1779839439000,-500.0,0.00034009,2]
[423093541,1779839439000,-310.12179145,0.00034009,7]
[423093540,1779839439000,-500.0,0.00034009,2]
[423093560,1779839439000,-500.0,0.00034009,2]
[423093563,1779839439000,-378.57708216,0.00034009,7]
[423093562,1779839439000,-0.55855933,0.00034009,7]
[423093561,1779839439000,-500.0,0.00034009,2]
[423093554,1779839439000,-229.59658464,0.00034009,7]
[423093557,1779839439000,-397.55855933,0.00034009,2]
[423093555,1779839439000,-270.40341536,0.00034009,7]
[423093552,1779839439000,-400.39880848,0.00034009,2]
[423093559,1779839439000,-500.0,0.00034009,7]
[423093553,1779839439000,-500.0,0.00034009,2]
[423093549,1779839439000,-500.0,0.00034009,2]
[423093551,1779839439000,-99.60119152,0.00034009,2]
[423093550,1779839439000,-500.0,0.00034009,7]
[423093547,1779839439000,-500.0,0.00034009,2]
[423093548,1779839439000,-500.0,0.00034009,7]
[423093538,1779839439000,-236.31764856,0.00034009,2]
[423093543,1779839439000,-500.0,0.00034009,7]
[423093546,1779839439000,-500.0,0.00034009,7]
[423093542,1779839439000,-500.0,0.00034009,2]
[423093558,1779839439000,-102.44144067,0.00034009,2]
[423093544,1779839439000,-500.0,0.00034009,2]
[423093730,1779839441000,-500.0,0.00034009,2]
[423093724,1779839441000,-500.0,0.00034009,2]
[423093728,1779839441000,-500.0,0.00034009,2]
[423093726,1779839441000,-451.53564149,0.00034009,2]
[423093723,1779839441000,-120.86435851,0.00034009,7]
[423093725,1779839441000,-500.0,0.00034009,7]
[423093722,1779839441000,-384.42,0.00033999,10]
[423093740,1779839441000,-500.0,0.00034009,2]
[423093727,1779839441000,-48.46435851,0.00034009,2]
[423093731,1779839441000,-500.0,0.00034009,2]
[423093739,1779839441000,-139.06522187,0.00034009,7]
[423093732,1779839441000,-500.0,0.00034009,7]
[423093747,1779839441000,-25.52477673,0.00034009,2]
[423093729,1779839441000,-500.0,0.00034009,7]
[423093743,1779839441000,-500.0,0.00034009,2]
[423093738,1779839441000,-360.93477813,0.00034009,7]
[423093745,1779839441000,-500.0,0.00034009,7]
[423093737,1779839441000,-500.0,0.00034009,2]
[423093733,1779839441000,-500.0,0.00034009,2]
[423093734,1779839441000,-500.0,0.00034009,2]
[423093735,1779839441000,-500.0,0.00034009,7]
[423093736,1779839441000,-500.0,0.00034009,2]
[423093762,1779839443000,-500.0,0.00034009,2]
[423093758,1779839443000,-500.0,0.00034009,7]
[423093757,1779839443000,-255.6021803,0.00034009,2]
[423093759,1779839443000,-500.0,0.00034009,2]
[423093760,1779839443000,-500.0,0.00034009,2]
[423093767,1779839443000,-500.0,0.00034009,2]
[423093769,1779839443000,-27.34551033,0.00034009,2]
[423093761,1779839443000,-500.0,0.00034009,7]
[423093765,1779839443000,-500.0,0.00034009,2]
[423093764,1779839443000,-500.0,0.00034009,2]
[423093763,1779839443000,-500.0,0.00034009,7]
[423093766,1779839443000,-500.0,0.00034009,2]
[423093768,1779839443000,-500.0,0.00034009,2]
[423093796,1779839444000,-791.06372407,0.00034082,2]
[423093798,1779839444000,-518.0,0.00034235,11]
[423093795,1779839444000,-88591.98551773,0.0003401,2]
[423093799,1779839444000,-2356.3893327,0.00034635,2]
[423093800,1779839444000,-263.92,0.00034649,2]
[423093802,1779839444000,-500.0,0.00034892,120]
[423093801,1779839444000,-942.48854076,0.00034793,2]
[423093808,1779839444000,-42379.6870604,0.00034893,2]
[423093803,1779839444000,-500.0,0.00034892,120]
[423093807,1779839444000,-500.0,0.00034892,7]
[423093806,1779839444000,-500.0,0.00034892,30]
[423093804,1779839444000,-500.0,0.00034892,120]
[423093794,1779839444000,-15285.66998227,0.0003401,2]
[423093809,1779839444000,-146549.0868866,0.00034893,2]
[423093810,1779839444000,-2734.26294522,0.00034924,2]
[423093811,1779839444000,-500.0,0.0003495,7]
[423093812,1779839444000,-241.3104097,0.0003495,7]
[423093815,1779839444000,-500.0,0.0003495,7]
[423093814,1779839444000,-447.59156389,0.0003495,7]
[423093816,1779839444000,-791.06372403,0.00034951,2]
[423093817,1779839444000,-500.0,0.00035049,120]
[423093805,1779839444000,-500.0,0.00034892,120]
[423093790,1779839444000,-500.0,0.00034009,2]
[423093788,1779839444000,-500.0,0.00034009,2]
[423093789,1779839444000,-500.0,0.00034009,2]
[423093771,1779839444000,-500.0,0.00034009,2]
[423093770,1779839444000,-472.65448967,0.00034009,2]
[423093772,1779839444000,-500.0,0.00034009,2]
[423093773,1779839444000,-500.0,0.00034009,2]
[423093779,1779839444000,-500.0,0.00034009,2]
[423093774,1779839444000,-500.0,0.00034009,2]
[423093777,1779839444000,-500.0,0.00034009,2]
[423093775,1779839444000,-500.0,0.00034009,2]
[423093780,1779839444000,-500.0,0.00034009,2]
[423093776,1779839444000,-500.0,0.00034009,2]
[423093778,1779839444000,-500.0,0.00034009,2]
[423093782,1779839444000,-500.0,0.00034009,2]
[423093791,1779839444000,-500.0,0.00034009,2]
[423093792,1779839444000,-600.0,0.00034009,2]
[423093785,1779839444000,-126.32817554,0.00034009,2]
[423093783,1779839444000,-500.0,0.00034009,2]
[423093781,1779839444000,-500.0,0.00034009,2]
[423093784,1779839444000,-500.0,0.00034009,2]
[423093786,1779839444000,-373.67182446,0.00034009,2]
[423093793,1779839444000,-500.0,0.00034009,2]
[423093813,1779839444000,-593.42709299,0.0003495,7]
[423093787,1779839444000,-500.0,0.00034009,2]
[423093823,1779839444000,-150.0,0.0003526,30]
[423093797,1779839444000,-475.7,0.00034182,7]
[423093820,1779839444000,-558.331,0.0003505,2]
[423093848,1779839444000,-300.0,0.00035298,2]
[423093849,1779839444000,-493.32888988,0.00035298,2]
[423093847,1779839444000,-300.0,0.00035298,2]
[423093857,1779839444000,-300.0,0.00035298,2]
[423093851,1779839444000,-300.0,0.00035298,2]
[423093854,1779839444000,-605.24124213,0.00035298,2]
[423093852,1779839444000,-300.0,0.00035298,2]
[423093853,1779839444000,-300.0,0.00035298,2]
[423093855,1779839444000,-300.0,0.00035298,2]
[423093850,1779839444000,-300.0,0.00035298,2]
[423093846,1779839444000,-300.0,0.00035298,2]
[423093856,1779839444000,-300.0,0.00035298,2]
[423093858,1779839444000,-300.0,0.00035298,2]
[423093860,1779839444000,-1068.30020172,0.00035298,2]
[423093864,1779839444000,-302.1844563,0.00035298,2]
[423093861,1779839444000,-894.55274135,0.00035298,2]
[423093866,1779839444000,-300.0,0.00035298,2]
[423093863,1779839444000,-300.0,0.00035298,2]
[423093868,1779839444000,-300.0,0.00035298,2]
[423093867,1779839444000,-300.96252262,0.00035298,2]
[423093821,1779839444000,-219.0,0.0003505,2]
[423093865,1779839444000,-300.0,0.00035298,2]
[423093859,1779839444000,-528.42557,0.00035298,2]
[423093844,1779839444000,-300.0,0.00035298,2]
[423093862,1779839444000,-726.99445071,0.00035298,2]
[423093842,1779839444000,-300.0,0.00035298,2]
[423093837,1779839444000,-300.0,0.00035298,2]
[423093818,1779839444000,-500.0,0.00035049,30]
[423093822,1779839444000,-1225.0,0.0003505,2]
[423093824,1779839444000,-150.0,0.0003526,7]
[423093828,1779839444000,-310.24516055,0.00035298,2]
[423093826,1779839444000,-500.0,0.00035295,120]
[423093827,1779839444000,-500.0,0.00035295,7]
[423093825,1779839444000,-1395.24,0.00035282,2]
[423093829,1779839444000,-300.0,0.00035298,2]
[423093833,1779839444000,-300.0,0.00035298,2]
[423093831,1779839444000,-300.0,0.00035298,2]
[423093819,1779839444000,-3547.0,0.0003505,2]
[423093830,1779839444000,-300.0,0.00035298,2]
[423093834,1779839444000,-300.0,0.00035298,2]
[423093835,1779839444000,-1096.16608281,0.00035298,2]
[423093839,1779839444000,-300.0,0.00035298,2]
[423093836,1779839444000,-300.0,0.00035298,2]
[423093845,1779839444000,-300.0,0.00035298,2]
[423093838,1779839444000,-300.0,0.00035298,2]
[423093843,1779839444000,-300.0,0.00035298,2]
[423093840,1779839444000,-300.0,0.00035298,2]
[423093841,1779839444000,-300.0,0.00035298,2]
[423093832,1779839444000,-300.0,0.00035298,2]
[423093903,1779839445000,-300.0,0.00035298,2]
[423093901,1779839445000,-452.48121198,0.00035298,2]
[423093896,1779839445000,-300.0,0.00035298,2]
[423093898,1779839445000,-300.0,0.00035298,2]
[423093895,1779839445000,-300.0,0.00035298,2]
[423093899,1779839445000,-578.19877315,0.00035298,2]
[423093894,1779839445000,-594.73329586,0.00035298,2]
[423093897,1779839445000,-464.43646992,0.00035298,2]
[423093902,1779839445000,-300.0,0.00035298,2]
[423093907,1779839445000,-300.0,0.00035298,2]
[423093904,1779839445000,-300.0,0.00035298,2]
[423093906,1779839445000,-300.0,0.00035298,2]
[423093909,1779839445000,-310.24516055,0.00035298,2]
[423093908,1779839445000,-484.71261076,0.00035298,2]
[423093910,1779839445000,-300.0,0.00035298,2]
[423093921,1779839445000,-300.0,0.00035298,2]
[423093912,1779839445000,-300.0,0.00035298,2]
[423093913,1779839445000,-300.0,0.00035298,2]
[423093893,1779839445000,-300.0,0.00035298,2]
[423093911,1779839445000,-300.0,0.00035298,2]
[423093905,1779839445000,-300.0,0.00035298,2]
[423093892,1779839445000,-300.0,0.00035298,2]
[423093881,1779839445000,-300.0,0.00035298,2]
[423093890,1779839445000,-1633.90603547,0.00035298,2]
[423093922,1779839445000,-300.0,0.00035298,2]
[423093870,1779839445000,-300.0,0.00035298,2]
[423093869,1779839445000,-300.0,0.00035298,2]
[423093871,1779839445000,-300.0,0.00035298,2]
[423093872,1779839445000,-300.0,0.00035298,2]
[423093878,1779839445000,-300.0,0.00035298,2]
[423093876,1779839445000,-344.4170137,0.00035298,2]
[423093874,1779839445000,-1263.82495173,0.00035298,2]
[423093875,1779839445000,-300.0,0.00035298,2]
[423093873,1779839445000,-300.0,0.00035298,2]
[423093877,1779839445000,-527.56699294,0.00035298,2]
[423093879,1779839445000,-300.0,0.00035298,2]
[423093882,1779839445000,-865.53028801,0.00035298,2]
[423093880,1779839445000,-300.0,0.00035298,2]
[423093883,1779839445000,-950.21744792,0.00035298,2]
[423093889,1779839445000,-300.0,0.00035298,2]
[423093885,1779839445000,-300.0,0.00035298,2]
[423093887,1779839445000,-309.98994128,0.00035298,2]
[423093888,1779839445000,-300.0,0.00035298,2]
[423093884,1779839445000,-300.09,0.00035298,2]
[423093886,1779839445000,-1148.70755237,0.00035298,2]
[423093891,1779839445000,-300.0,0.00035298,2]
[423093920,1779839445000,-300.0,0.00035298,2]
[423093900,1779839445000,-300.0,0.00035298,2]
[423093914,1779839445000,-300.0,0.00035298,2]
[423093937,1779839445000,-300.0,0.00035298,2]
[423093945,1779839445000,-421.76584481,0.00035298,2]
[423093944,1779839445000,-302.1844563,0.00035298,2]
[423093943,1779839445000,-300.0,0.00035298,2]
[423093941,1779839445000,-894.55274135,0.00035298,2]
[423093948,1779839445000,-300.0,0.00035298,2]
[423093959,1779839445000,-300.0,0.00035298,2]
[423093952,1779839445000,-300.0,0.00035298,2]
[423093949,1779839445000,-300.0,0.00035298,2]
[423093940,1779839445000,-1068.30020172,0.00035298,2]
[423093950,1779839445000,-300.0,0.00035298,2]
[423093956,1779839445000,-527.56699294,0.00035298,2]
[423093955,1779839445000,-344.4170137,0.00035298,2]
[423093953,1779839445000,-1263.82495173,0.00035298,2]
[423093960,1779839445000,-865.53028801,0.00035298,2]
[423093954,1779839445000,-300.0,0.00035298,2]
[423093958,1779839445000,-300.0,0.00035298,2]
[423093957,1779839445000,-300.0,0.00035298,2]
[423093962,1779839445000,-300.09,0.00035298,2]
[423093963,1779839445000,-300.0,0.00035298,2]
[423093951,1779839445000,-300.0,0.00035298,2]
[423093942,1779839445000,-726.99445071,0.00035298,2]
[423093961,1779839445000,-950.21744792,0.00035298,2]
[423093935,1779839445000,-300.0,0.00035298,2]
[423093938,1779839445000,-300.0,0.00035298,2]
[423093917,1779839445000,-300.0,0.00035298,2]
[423093916,1779839445000,-1096.16608281,0.00035298,2]
[423093918,1779839445000,-499.85668198,0.00035298,2]
[423093919,1779839445000,-300.0,0.00035298,2]
[423093923,1779839445000,-300.0,0.00035298,2]
[423093925,1779839445000,-300.0,0.00035298,2]
[423093927,1779839445000,-300.0,0.00035298,2]
[423093926,1779839445000,-300.0,0.00035298,2]
[423093932,1779839445000,-300.0,0.00035298,2]
[423093928,1779839445000,-300.0,0.00035298,2]
[423093915,1779839445000,-300.0,0.00035298,2]
[423093929,1779839445000,-300.0,0.00035298,2]
[423093939,1779839445000,-528.42557,0.00035298,2]
[423093947,1779839445000,-300.96252262,0.00035298,2]
[423093946,1779839445000,-300.0,0.00035298,2]
[423093936,1779839445000,-300.0,0.00035298,2]
[423093930,1779839445000,-493.32888988,0.00035298,2]
[423093924,1779839445000,-300.0,0.00035298,2]
[423093964,1779839445000,-191.78156556,0.00035298,2]
[423093934,1779839445000,-605.24124213,0.00035298,2]
[423093931,1779839445000,-375.6513729,0.00035298,2]
[423093933,1779839445000,-300.0,0.00035298,2]
[423093980,1779839446000,-452.48121198,0.00035298,2]
[423093979,1779839446000,-379.44720522,0.00035298,2]
[423093972,1779839446000,-547.76037183,0.00035298,2]
[423093973,1779839446000,-594.73329586,0.00035298,2]
[423093975,1779839446000,-592.8938836,0.00035298,2]
[423093971,1779839446000,-300.0,0.00035298,2]
[423093974,1779839446000,-300.0,0.00035298,2]
[423093970,1779839446000,-300.0,0.00035298,2]
[423093968,1779839446000,-300.0,0.00035298,2]
[423093969,1779839446000,-1633.90603547,0.00035298,2]
[423093982,1779839446000,-300.0,0.00035298,2]
[423093977,1779839446000,-300.0,0.00035298,2]
[423093978,1779839446000,-578.19877315,0.00035298,2]
[423093967,1779839446000,-300.0,0.00035298,2]
[423093965,1779839446000,-956.92598681,0.00035298,2]
[423093976,1779839446000,-464.43646992,0.00035298,2]
[423093966,1779839446000,-309.98994128,0.00035298,2]
[423093990,1779839446000,-300.0,0.00035298,2]
[423093985,1779839446000,-300.0,0.00035298,2]
[423093999,1779839446000,-2274.6209,0.00035547,2]
[423093995,1779839446000,-500.0,0.00035341,120]
[423093986,1779839446000,-300.0,0.00035298,2]
[423093996,1779839446000,-23968.05033491,0.00035547,2]
[423093998,1779839446000,-3108.26998069,0.00035547,2]
[423093994,1779839446000,-300.0,0.00035298,2]
[423093992,1779839446000,-300.0,0.00035298,2]
[423093997,1779839446000,-6387.51626918,0.00035547,2]
[423093991,1779839446000,-300.0,0.00035298,2]
[423093993,1779839446000,-300.0,0.00035298,2]
[423093984,1779839446000,-433.54280254,0.00035298,2]
[423093983,1779839446000,-300.0,0.00035298,2]
[423093981,1779839446000,-300.0,0.00035298,2]
[423093989,1779839446000,-300.0,0.00035298,2]
[423093987,1779839446000,-484.71261076,0.00035298,2]
[423093988,1779839446000,-310.24516055,0.00035298,2]
[423094004,1779839901000,-167.06305135,0.0001737,2]
[423094005,1779839912000,-167.06305135,0.0001737,2]
[423094006,1779839923000,-152.0,0.0001737,2]
[423094007,1779839924000,300.0,0.00014,2]
[423094008,1779839944000,-150.0,0.0001737,2]
[423094009,1779839964000,-241.91118516,0.0001737,2]
[423094010,1779839984000,-159.16,0.0001737,2]
[423094011,1779840004000,-150.0,0.0001737,2]
[423094012,1779840024000,-927.25526254,0.0001737,2]
[423094013,1779840045000,-170.85258714,0.0001737,2]
[423094014,1779840065000,-101.89215032,0.0001737,2]
[423094016,1779840118000,-1720.37903691,0.00017371,2]
[423094019,1779840453000,-194.94120344,0.00015885,2]
[423094020,1779840464000,-143.74879656,0.00015885,2]
[423094022,1779840487000,-161.31844722,0.00016721,2]
[423094021,1779840487000,-177.37155278,0.00016721,2]
[423094023,1779840507000,-604.91,0.00017371,2]
[423094024,1779840518000,-604.91,0.00017371,2]
[423094025,1779840540000,-1017.0539437,0.00017371,2]
[423094026,1779840541000,-1017.0539437,0.00017371,2]
[423094027,1779840560000,-2139.0649299,0.00017371,2]
[423094028,1779840580000,-718.04619383,0.00017371,2]
[423094029,1779840600000,-301.19770124,0.00017371,2]
[423094030,1779840621000,-196.79854578,0.00017371,2]
[423094219,1779840641000,-338.69,0.00022574,2]
[423094215,1779840641000,-160.0,0.0002,2]
[423094216,1779840641000,-338.69,0.00020065,2]
[423094221,1779840641000,-193.44816424,0.00022759,2]
[423094217,1779840641000,-338.69,0.00020901,2]
[423094214,1779840641000,-338.69,0.00019229,2]
[423094208,1779840641000,-93.35780494,0.00017371,2]
[423094213,1779840641000,-250.0,0.00019108,2]
[423094209,1779840641000,-215.09693608,0.00017372,2]
[423094211,1779840641000,-338.69,0.00017557,2]
[423094210,1779840641000,-239.39955846,0.00017374,2]
[423094218,1779840641000,-338.69,0.00021737,2]
[423094212,1779840641000,-338.69,0.00018393,2]
[423094223,1779840641000,-338.69,0.0002341,2]
[423094220,1779840641000,-215.0,0.00022759,2]
[423094224,1779840641000,-338.69,0.00024246,2]
[423094222,1779840641000,-4661.0,0.00023008,2]
[423094238,1779840641000,-177.61,0.00027112,2]
[423094236,1779840641000,-1481.133072,0.00026517,2]
[423094237,1779840641000,-338.69,0.00026754,2]
[423094235,1779840641000,-642.28,0.000264,2]
[423094232,1779840641000,-338.69,0.00025918,2]
[423094233,1779840641000,-1500.0,0.00026,2]
[423094234,1779840641000,-151.0,0.00026296,2]
[423094231,1779840641000,-239.39955846,0.00025438,2]
[423094229,1779840641000,-338.69,0.00025082,2]
[423094228,1779840641000,-250.0,0.00024658,2]
[423094226,1779840641000,-208.9,0.00024658,2]
[423094227,1779840641000,-213.73,0.00024658,2]
[423094230,1779840641000,-517.0,0.00025082,2]
[423094225,1779840641000,-220.69,0.00024658,2]
[423094271,1779840642000,-358.1,0.000309,120]
[423094270,1779840642000,-154.0,0.00030602,30]
[423094267,1779840642000,-517.0,0.00030574,7]
[423094268,1779840642000,-156.0,0.00030602,30]
[423094266,1779840642000,-500.0,0.00030424,30]
[423094264,1779840642000,-500.0,0.0003015,30]
[423094262,1779840642000,-284.83,0.00030137,2]
[423094272,1779840642000,-338.69,0.00030934,2]
[423094265,1779840642000,-151.0,0.00030239,2]
[423094269,1779840642000,-152.0,0.00030602,30]
[423094281,1779840642000,-170.85258714,0.00032,120]
[423094274,1779840642000,-250.0,0.00031363,7]
[423094275,1779840642000,-156.0,0.00031602,30]
[423094277,1779840642000,-158.0,0.00031602,30]
[423094276,1779840642000,-152.0,0.00031602,30]
[423094278,1779840642000,-338.69,0.0003177,2]
[423094279,1779840642000,-358.1,0.000319,120]
[423094284,1779840642000,-164.94995373,0.00032,120]
[423094280,1779840642000,-191.86666666,0.00032,120]
[423094263,1779840642000,-420.0,0.00030144,10]
[423094273,1779840642000,-312.0,0.00031333,3]
[423094260,1779840642000,-534.76623247,0.00030093,7]
[423094239,1779840642000,-150.0,0.00027521,2]
[423094256,1779840642000,-154.0,0.00029602,30]
[423094282,1779840642000,-301.19770124,0.00032,120]
[423094241,1779840642000,-166.66,0.00027893,30]
[423094240,1779840642000,-338.69,0.0002759,2]
[423094243,1779840642000,-338.69,0.00028426,2]
[423094242,1779840642000,-151.0,0.00028267,2]
[423094244,1779840642000,-150.0,0.00029,2]
[423094245,1779840642000,-300.0,0.00029,3]
[423094246,1779840642000,-150.0,0.00029002,2]
[423094249,1779840642000,-338.69,0.00029262,2]
[423094261,1779840642000,-338.69,0.00030098,2]
[423094247,1779840642000,-150.0,0.00029105,2]
[423094251,1779840642000,-54208.63044978,0.00029297,2]
[423094250,1779840642000,-163.93,0.00029287,10]
[423094252,1779840642000,-40342.05266082,0.00029297,2]
[423094253,1779840642000,-151.0,0.00029602,30]
[423094255,1779840642000,-152.0,0.00029602,30]
[423094254,1779840642000,-156.0,0.00029602,30]
[423094257,1779840642000,-157.0,0.00029602,30]
[423094258,1779840642000,-176.03,0.0003,3]
[423094259,1779840642000,-534.76623247,0.0003,7]
[423094248,1779840642000,-550.95,0.00029248,120]
[423094283,1779840642000,-170.64831804,0.00032,120]
[423094332,1779840642000,-519.0,0.00033157,2]
[423094285,1779840642000,-179.51154846,0.00032,120]
[423094311,1779840642000,-379.17948859,0.00032873,2]
[423094315,1779840642000,-1481.133072,0.00031742,2]
[423094317,1779840642000,-1890.56865269,0.00032873,2]
[423094316,1779840642000,-137.92003182,0.00032873,2]
[423094318,1779840642000,-14.77297746,0.000329,120]
[423094319,1779840642000,-343.32702254,0.000329,120]
[423094321,1779840642000,-157.47148202,0.00033,120]
[423094320,1779840642000,-550.95,0.00032904,120]
[423094324,1779840642000,-164.94995373,0.00033,120]
[423094312,1779840642000,-419.7045,0.00032873,2]
[423094326,1779840642000,-150.0,0.0003303,2]
[423094325,1779840642000,-179.51154846,0.00033,120]
[423094322,1779840642000,-34.39518464,0.00033,120]
[423094328,1779840642000,-150.0,0.0003303,2]
[423094329,1779840642000,-212.60403745,0.0003303,2]
[423094327,1779840642000,-150.0,0.0003303,2]
[423094330,1779840642000,-500.0,0.0003303,2]
[423094331,1779840642000,-527.91888578,0.0003303,2]
[423094333,1779840642000,-6062.0,0.00033157,2]
[423094334,1779840642000,-150.332008,0.00033201,2]
[423094323,1779840642000,-170.64831804,0.00033,120]
[423094313,1779840642000,-463.60708434,0.00032873,2]
[423094286,1779840642000,-183.04529356,0.00032,120]
[423094306,1779840642000,-152.0,0.00032602,30]
[423094287,1779840642000,-209.09079783,0.00032,120]
[423094288,1779840642000,-234.24130632,0.00032,120]
[423094290,1779840642000,-177.37155278,0.00032,120]
[423094289,1779840642000,-173.04576087,0.00032,120]
[423094292,1779840642000,-194.94120344,0.00032,120]
[423094291,1779840642000,-202.33110808,0.00032,120]
[423094293,1779840642000,-225.15901754,0.00032,120]
[423094294,1779840642000,-175.7302231,0.00032,120]
[423094295,1779840642000,-196.79854578,0.00032,120]
[423094297,1779840642000,-177.44836188,0.00032,120]
[423094309,1779840642000,-1709.02024256,0.00032873,2]
[423094298,1779840642000,-220.12610306,0.00032,120]
[423094299,1779840642000,-186.22060139,0.00032,120]
[423094300,1779840642000,-2167.045,0.00032147,31]
[423094301,1779840642000,-163.371,0.00032147,31]
[423094303,1779840642000,-795.0,0.00032548,30]
[423094305,1779840642000,-156.0,0.00032602,30]
[423094302,1779840642000,-151.0,0.0003221,5]
[423094304,1779840642000,-152.0,0.00032599,5]
[423094307,1779840642000,-1000.0,0.00032825,2]
[423094308,1779840642000,-180.47,0.00032838,2]
[423094296,1779840642000,-164.8882927,0.00032,120]
[423094352,1779840643000,-216.07,0.00034649,2]
[423094350,1779840643000,-343.12549118,0.00034397,2]
[423094354,1779840643000,-192.4,0.00034892,2]
[423094351,1779840643000,-156.0,0.00034602,30]
[423094360,1779840643000,-358.1,0.000349,120]
[423094356,1779840643000,-500.0,0.00034892,120]
[423094355,1779840643000,-500.0,0.00034892,120]
[423094357,1779840643000,-500.0,0.00034892,7]
[423094349,1779840643000,-635.32328918,0.00034397,2]
[423094358,1779840643000,-500.0,0.00034892,120]
[423094353,1779840643000,-12529.8313516,0.00034658,2]
[423094347,1779840643000,-174.61919141,0.00034397,2]
[423094344,1779840643000,-9086.3305789,0.00034108,2]
[423094345,1779840643000,-151.0,0.00034182,7]
[423094346,1779840643000,-181.328613,0.000343,21]
[423094343,1779840643000,-2156.72,0.00034031,2]
[423094341,1779840643000,-179.51154846,0.000339,120]
[423094342,1779840643000,-2033.97,0.00034008,2]
[423094339,1779840643000,-191.86666666,0.000339,120]
[423094340,1779840643000,-164.94995373,0.000339,120]
[423094335,1779840643000,-239.39955846,0.00033502,2]
[423094359,1779840643000,-2033.97,0.00034892,2]
[423094337,1779840643000,-163.0,0.00033602,30]
[423094336,1779840643000,-156.0,0.00033602,30]
[423094348,1779840643000,-743.50770149,0.00034397,2]
[423094338,1779840643000,-358.1,0.000339,120]
[423094361,1779840643000,-3035.0,0.000349,120]
[423094364,1779840643000,-771.01748644,0.00034945,2]
[423094395,1779840643000,-863.11764415,0.00035,2]
[423094393,1779840643000,-275.14764415,0.00029287,10]
[423094362,1779840643000,-400.0,0.000349,12]
[423094384,1779840643000,-606.6000014,0.00035,2]
[423094386,1779840643000,-635.04,0.00035,2]
[423094383,1779840643000,-974.33676083,0.00035,2]
[423094382,1779840643000,-469.73578931,0.00035,2]
[423094381,1779840643000,-5297.37439239,0.00035,2]
[423094380,1779840643000,-1900.0,0.00035,2]
[423094379,1779840643000,-2034.9441111,0.00035,2]
[423094377,1779840643000,-98837.06635349,0.00035,2]
[423094378,1779840643000,-5542.27453858,0.00035,2]
[423094394,1779840643000,-17.88235585,0.00029287,10]
[423094375,1779840643000,-191.86666666,0.00035,120]
[423094376,1779840643000,-2291.63762003,0.00035,2]
[423094365,1779840643000,-150.0,0.00034964,7]
[423094363,1779840643000,-181.08010149,0.00034945,2]
[423094367,1779840643000,-150.0,0.00034964,7]
[423094370,1779840643000,-313.31409472,0.00034999,7]
[423094366,1779840643000,-150.0,0.00034964,7]
[423094374,1779840643000,-34008.39402841,0.00035,5]
[423094369,1779840643000,-150.0,0.00034964,7]
[423094371,1779840643000,-500.0,0.00034999,7]
[423094372,1779840643000,-265.39896509,0.00034999,7]